Cogmind - Beta 16 @@@ ROGUE MODE // 2025.12.17 @ 11:17:24 Player: Red Box Result: Destroyed by 8T-MFT(R) with Subdweller Machine Gun Performance ------------- Evolutions (0) 0 Regions Visited (3) 600 Robots Destroyed (47) 235 Value Destroyed (1068) 1068 Prototype IDs (0) 0 Alien Tech Used (0) 0 Bonus (0) 0 TOTAL SCORE: 1903 Bonus ------- None Cogmind --------- Core Integrity 0/250 Matter 139/300 Energy 449/450 System Corruption 0% Temperature Cool (0) Movement Rolling (130) Ox2 Location -10/Subcaves Parts ------- > --- POWER (1) -------- Subdweller Power Source > --- PROPULSION (2) --- Spiked Treads Compact Wheel > --- UTILITY (2) ------ Medium Storage Unit High-capacity Battery > --- WEAPON (2) ------- Subdweller Beam Cannon Flak Cannon > --- INVENTORY (10) --- Spiked Treads Advanced Treads Subdweller Monowheel Disposable Heat Sink Large Matter Pod (0) Heavy Assault Rifle Subdweller Machine Gun Assault Cannon Heavy Flail Piercing Trap Peak State ------------ > --- POWER ------------ Improved Ion Engine > --- PROPULSION ------- Light Treads Compact Wheel > --- UTILITY ---------- Light Humpback > --- WEAPON ----------- High-powered Shotgun Flak Cannon > --- INVENTORY -------- Subdweller Power Source Spiked Treads Spiked Treads Advanced Treads Compact Wheel Subdweller Monowheel Medium Storage Unit High-capacity Battery Large Matter Pod Beam Cannon Heavy Assault Rifle Heavy Assault Rifle Subdweller Machine Gun Assault Cannon Subdweller Shrapnel Launcher Heavy Flail Piercing Trap [Rating: 15] Favorites ----------- Power Improved Ion Engine Engine Improved Ion Engine Propulsion Compact Wheel Treads Light Treads Leg Aluminum Leg Wheel Compact Wheel Utility Medium Storage Unit Device Improved Terrain Scanner Storage Medium Storage Unit Protection Light Armor Plating Weapon Beam Cannon Energy Gun Medium Laser Energy Cannon Beam Cannon Ballistic Gun Assault Rifle Ballistic Cannon Flak Cannon Launcher Grenade Launcher Special Weapon Mining Laser Impact Weapon Heavy Flail Build | -11 -10 -10 -10 ------- Run | Yrd Mat Min Sub Slots Evolved . | . . . . Power . | . . . . Propulsion . | . . . . Utility . | . . . . Weapon . | . . . . Parts Attached 36 | 8 11 4 13 Power 5 | 1 2 1 1 Engine 5 | 1 2 1 1 Core . | . . . . Reactor . | . . . . Propulsion 9 | 2 2 1 4 Treads 4 | . 1 1 2 Leg 2 | 2 . . . Wheel 3 | . 1 . 2 Hover . | . . . . Flight . | . . . . Utility 7 | 3 2 . 2 Device 2 | 2 . . . Storage 4 | 1 1 . 2 Processor . | . . . . Hackware . | . . . . Protection 1 | . 1 . . Artifact . | . . . . Weapon 15 | 2 5 2 6 Energy Gun 1 | . 1 . . Energy Cannon 2 | . 1 . 1 Ballistic Gun 6 | 2 1 2 1 Ballistic Cannon 2 | . . . 2 Launcher 2 | . 1 . 1 Special Weapon 1 | . 1 . . Impact Weapon 1 | . . . 1 Slashing Weapon . | . . . . Piercing Weapon . | . . . . Special Melee Weapon . | . . . . Unidentified Prototypes . | . . . . Parts Lost 7 | . . . 7 Power 1 | . . . 1 Propulsion 2 | . . . 2 Utility 2 | . . . 2 Weapon 2 | . . . 2 Highest Loss Streak 5 | . . . 5 To Critical Strikes . | . . . . Average Backups 10 | 5 9 9 13 Power . | . . . . Propulsion 3 | 3 3 2 4 Utility 2 | . 2 2 2 Weapon 4 | . 3 4 6 Tool/Special . | . . . . Unused Backups 12 | . 1 3 8 Power . | . . . . Propulsion 2 | . . . 2 Utility 6 | . 1 2 3 Weapon 3 | . . . 3 Tool/Special 1 | . . 1 . Average Slot Usage (%) 95 | . 99 100 88 Engine 14 | . 14 14 14 Treads 10 | . 4 14 13 Leg 6 | . 19 . . Wheel 10 | . 4 14 14 Device 3 | . 9 . . Storage 14 | . 14 14 16 Protection 6 | . 4 14 1 Energy Gun 1 | . 4 . . Energy Cannon 6 | . 1 13 4 Ballistic Gun 10 | . 15 7 8 Ballistic Cannon 4 | . . . 12 Launcher 2 | . 3 5 . Special Weapon 1 | . 2 2 . Peak Build Rating 15 | 9 12 11 15 Average Rating 10 | 7 9 9 13 On Entrance 7 | . 9 9 11 Avg Prop Armor Cover (%) 9 | . 9 7 10 Naked Turns . | . . . . Heaviest Build 56 | 12 24 26 56 Greatest Support 20 | 20 20 20 20 Greatest Overweight (x) 3 | . 1 1 3 Average Overweight (x) 1 | . . 1 2 Largest Inventory Capacity 25 | 8 10 10 25 Average Capacity 13 | 7 9 10 20 Most Carried 19 | 7 10 10 19 Average Carried 11 | 5 9 9 14 Final Capacity 10 | 8 10 10 10 Final Carried 10 | 7 10 10 10 Class Distribution -------------------- 100% | Mutant Dominant Class ---------------- Mutant | -10/Materials Mutant | -10/Mines Mutant | -10/Subcaves Resources | -11 -10 -10 -10 ----------- Run | Yrd Mat Min Sub Matter Collected 1572 | 416 546 287 323 Remotely . | . . . . Salvage Created 1032 | 254 605 23 150 Parts 79 | 21 45 . 13 Haulers Intercepted 1 | . 1 . . Recyclers Shooed 1 | 1 . . . Parts Field Recycled . | . . . . Retrieved Matter . | . . . . Parts Self-Destructed 1 | . . . 1 Prevented . | . . . . Parts Restored . | . . . . Kills | -11 -10 -10 -10 ------- Run | Yrd Mat Min Sub Combat Hostiles Destroyed 35 | . 22 4 9 Guns 7 | . 5 1 1 Cannons 10 | . . 2 8 AOE 18 | . 17 1 . Classes Destroyed 11 | 2 7 1 1 Worker 2 | . 2 . . Tunneler 8 | 8 . . . Hauler 1 | . 1 . . Recycler 1 | 1 . . . Mechanic 1 | . 1 . . Watcher 3 | . 3 . . Swarmer 9 | . 9 . . Grunt 10 | . 10 . . Sentry 1 | . . . 1 Subdweller 11 | . 3 . 8 Assembled 4 | . . 4 . Best Kill Streak 7 | 4 7 1 2 Combat Bots Only 6 | . 6 1 2 Max Kills in Single Turn 3 | 1 3 1 1 Gunslinging . | . . . . Exploded 3 | . 3 1 . Melee . | . . . . Uniques/NPCs Destroyed . | . . . . Combat | -11 -10 -10 -10 -------- Run | Yrd Mat Min Sub Hostile Shots Fired 115 | . 53 17 45 Missed 41 | . 22 4 15 Hits 74 | . 31 13 30 Projectile 74 | . 31 13 30 Critical Strikes 1 | . . 1 . Damage Taken 1320 | . 385 210 725 Core 262 | . 100 39 123 Absorbed by Shields . | . . . . Core Remaining (%) 100 | 100 . . . Volleys Fired 143 | 34 60 20 29 Largest 2 | 2 2 2 2 Hottest 100 | 40 100 100 97 Shots Fired 257 | 68 102 30 57 Gun 177 | 68 75 10 24 Cannon 49 | . 1 16 32 Launcher 20 | . 16 3 1 Special 11 | . 10 1 . Kinetic 192 | 68 59 10 55 Thermal 46 | . 27 17 2 Explosive 19 | . 16 3 . Electromagnetic . | . . . . Robot Hit Streak 15 | 8 15 3 15 Robot Miss Streak 7 | 2 4 5 7 Penetration Max . | . . . . Secondary Targets . | . . . . Shots Hit Robots 155 | 43 54 10 48 Core Hits 91 | 12 45 6 28 Critical Kills . | . . . . Critical Parts Destroyed 1 | . 1 . . Critical Strikes 1 | . 1 . . Destroy 1 | . 1 . . Melee Attacks 16 | . . . 16 Impact 16 | . . . 16 Slashing . | . . . . Piercing . | . . . . Sneak Attacks . | . . . . Combat Hostiles . | . . . . Follow-up Attacks . | . . . . Damage Inflicted 3430 | 491 1734 210 995 Guns 1485 | 491 577 89 328 Cannons 690 | . 18 70 602 Explosions 1255 | . 1139 51 65 Melee . | . . . . Ramming . | . . . . Kinetic 2017 | 491 476 89 961 Thermal 223 | . 119 70 34 Explosive 1190 | . 1139 51 . Electromagnetic . | . . . . Impact . | . . . . Slashing . | . . . . Piercing . | . . . . Highest Corruption . | . . . . Average Corruption . | . . . . Corruption Purged . | . . . . Corruption Blocked . | . . . . Overload Shots . | . . . . Overflow Damage 63 | . 42 . 21 Projectiles . | . . . . Explosions 63 | . 42 . 21 Melee . | . . . . Knockbacks 17 | . . . 17 Impact . | . . . . Kinetic 17 | . . . 17 Secondary . | . . . . Self-Inflicted Damage 83 | . 24 . 59 Shots 2 | . 1 . 1 Rammed . | . . . . Targets Rammed . | . . . . Kicked . | . . . . Crushed . | . . . . Highest Temperature 165 | . 40 165 2 Average Temperature 35 | . 13 66 2 Received Heat Transfer 246 | . 102 . 144 Siege Activations . | . . . . Martial Activations . | . . . . Shielding Activations . | . . . . Robots Disrupted . | . . . . Combat Hostiles . | . . . . Robots Corrupted . | . . . . Combat Hostiles . | . . . . Parts Fried . | . . . . Impact Corruptions . | . . . . Robots Melted . | . . . . Combat Hostiles . | . . . . Parts Melted . | . . . . Heat Transferred 555 | . 333 148 74 Parts Sabotaged . | . . . . Parts Stolen . | . . . . Parts Stripped . | . . . . Power Chain Reactions . | . . . . Alert | -11 -10 -10 -10 ------- Run | Yrd Mat Min Sub Maximum Alert Level 1 | . 1 . . Low Security (%) 85 | 100 67 100 . Level 1 14 | . 32 . . Level 2 . | . . . . Level 3 . | . . . . Level 4 . | . . . . Level 5 . | . . . . High Security . | . . . . Max Security . | . . . . Peak Influence 247 | 5 247 92 . Initial 92 | . . 92 . Average 69 | 1 150 6 . Influence Increases 797 | 45 707 25 20 Destroy 0b10 Robot/C 400 | . 380 . 20 Destroy 0b10 Robot/NC 80 | 45 35 . . Destroy Leader 68 | . 68 . . Successful Hack 43 | . 43 . . Select Force Hacks 60 | . 60 . . Destroy Structure 146 | . 121 25 . Influence Decreases 797 | 45 470 262 20 Entered New Map 145 | . . 145 . Time Decay 652 | 45 470 117 20 Squads Dispatched 4 | . 3 1 . Investigation 3 | . 2 1 . Extermination . | . . . . Reinforcement 1 | . 1 . . Assault . | . . . . Garrison . | . . . . Intercept . | . . . . Searches Triggered . | . . . . Construction Impeded . | . . . . Haulers Reinforced . | . . . . Active Scanning Responses . | . . . . Cargo Convoy Interrupts . | . . . . Stealth | -11 -10 -10 -10 --------- Run | Yrd Mat Min Sub Distress Signals 1 | . 1 . . Communications Jammed . | . . . . Distress Signals . | . . . . Times Spotted 44 | . 29 5 10 Peak Tracking Total 6 | . 6 1 2 Tactical Retreats 2 | . . 2 . Traps | -11 -10 -10 -10 ------- Run | Yrd Mat Min Sub Traps Triggered 1 | . 1 . . Indirectly . | . . . . Trap Hack Attempts . | . . . . Triggered . | . . . . Disarmed . | . . . . Reprogrammed . | . . . . Reused . | . . . . Traps Extracted . | . . . . Installed . | . . . . Triggered . | . . . . Most Traps Carried 1 | . . . 1 Machines | -11 -10 -10 -10 ---------- Run | Yrd Mat Min Sub Machines Disabled . | . . . . Max in Single Turn . | . . . . Machines Repaired . | . . . . Machines Dismantled . | . . . . Machines Sabotaged . | . . . . Overloaded Fab Kills . | . . . . Hacking | -11 -10 -10 -10 --------- Run | Yrd Mat Min Sub Machines Accessed 11 | . 9 1 1 Terminals 7 | . 7 . . Fabricators . | . . . . Repair Stations . | . . . . Recycling Units 2 | . 2 . . Scanalyzers . | . . . . Garrison Access . | . . . . Total Hacks 37 | . 33 1 3 Successful 22 | . 18 1 3 Failed 15 | . 15 . . Catastrophic 3 | . 3 . . Database Lockouts . | . . . . Manual 26 | . 26 . . Terminals 25 | . 25 . . Fabricators . | . . . . Repair Stations . | . . . . Recycling Units 8 | . 8 . . Scanalyzers . | . . . . Garrison Access . | . . . . Terminal Hacks 8 | . 4 1 3 Record 3 | . . . 3 Robot Analysis 1 | . 1 . . Open Door 1 | . . 1 . Terminal Index 1 | . 1 . . Locate Traps 2 | . 2 . . Fabricator Hacks . | . . . . Repair Station Hacks . | . . . . Recycling Unit Hacks 2 | . 2 . . Retrieve Components 2 | . 2 . . Scanalyzer . | . . . . Garrison Access Hacks . | . . . . Unauthorized Hacks 12 | . 12 . . Terminals 8 | . 8 . . Track 1 | . 1 . . Assimilate 1 | . 1 . . Operators 1 | . 1 . . Skim 5 | . 5 . . Fabricators . | . . . . Repair Stations . | . . . . Recycling Units 4 | . 4 . . Reject 2 | . 2 . . Tunnel 2 | . 2 . . Scanalyzers . | . . . . Garrison Access . | . . . . Data Cores Recovered . | . . . . Used . | . . . . Hacking Detections 9 | . 9 . . Full Trace Events . | . . . . Feedback Events . | . . . . Feedback Blocked . | . . . . Robot Schematics Acquired . | . . . . Robots Built . | . . . . Authchips . | . . . . Time . | . . . . Total Robot Build Rating . | . . . . Part Schematics Acquired . | . . . . Parts Built . | . . . . Authchips . | . . . . Time . | . . . . Total Part Build Rating . | . . . . Part Studies Acquired . | . . . . Parts Repaired . | . . . . Time . | . . . . Parts Recycled . | . . . . Recycled Matter . | . . . . Retrieved Matter . | . . . . Retrieved Components 2 | . 2 . . Parts Scanalyzed . | . . . . Part Schematics Acquired . | . . . . Parts Damaged . | . . . . Bothacking | -11 -10 -10 -10 ------------ Run | Yrd Mat Min Sub Used RIF Installer . | . . . . Robots Hacked . | . . . . Non-combat . | . . . . Combat . | . . . . Robot Hacks Applied . | . . . . Relay Couplers Released . | . . . . Fabnet Peak Effective % . | . . . . Robots Rewired . | . . . . Allies Hacked . | . . . . Hacks Repelled . | . . . . Allies | -11 -10 -10 -10 -------- Run | Yrd Mat Min Sub Total Allies 1 | . 1 . . Largest Group 1 | . 1 1 1 Highest-Rated Group 10 | . 10 10 10 Highest-Rated Ally 10 | . 10 10 10 Total Orders 6 | . 3 2 1 STAY 4 | . 2 1 1 FOLLOW 2 | . 1 1 . Ally Attacks . | . . . . Total Damage . | . . . . Kills . | . . . . Allies Corrupted . | . . . . Allies Melted . | . . . . Intel | -11 -10 -10 -10 ------- Run | Yrd Mat Min Sub Active Infowar (turns) 1212 | 227 985 . . Terrain 1212 | 227 985 . . Robot Analysis Total 1 | . 1 . . Derelict Logs Recovered 4 | . . 2 2 Drone Launches . | . . . . Drone Recoveries . | . . . . Exploration | -11 -10 -10 -10 ------------- Run | Yrd Mat Min Sub Turns Passed 4721 | 318 1382 1434 1587 Spaces Moved 2783 | 175 892 845 871 Core 10 | 8 . . 2 Treads 257 | . 4 204 49 Legs 745 | 167 578 . . Wheels 1771 | . 310 641 820 Hover . | . . . . Flight . | . . . . Fastest Speed 50 | 50 115 115 100 Average Speed 136 | 116 123 145 145 Slowest Speed 240 | 120 240 240 240 Overloaded Moves . | . . . . Propulsion Burnouts . | . . . . Robots Hopped . | . . . . Potential Cave-ins . | . . . . Cave-ins Triggered . | . . . . Exploration Rate (%) 61 | 5 96 99 47 Regions Visited 3 Branch Regions 2 Pre-discovered Areas 7 | . 6 . 1 Known Exits Taken 1 | . 1 . . Unknown Exits Taken 2 | 1 . 1 . Scrap Searched 2 | . . 1 1 Spaces Dug 13 | . 10 1 2 Terrain Destroyed 174 | . 126 28 20 Melee 2 | . . . 2 Projectile 11 | . 10 1 . AOE 161 | . 116 27 18 Terrain Rammed . | . . . . Walls Destroyed . | . . . . Machines Disabled . | . . . . Actions | -11 -10 -10 -10 --------- Run | Yrd Mat Min Sub Total 3410 | 224 1053 1025 1108 Wait 327 | . 57 134 136 Move 2780 | 174 891 844 871 Hop . | . . . . Pick Up 51 | 7 10 9 25 Fast Attach 15 | 7 1 . 7 Attach 10 | . 4 1 5 Detach 2 | . . . 2 Swap 37 | 1 20 6 10 Drop 29 | 1 10 11 7 Fire 143 | 34 60 20 29 Melee 16 | . . . 16 Ram . | . . . . Kick . | . . . . Crush . | . . . . Escape Stasis . | . . . . Rewire . | . . . . Trap . | . . . . Miscellaneous . | . . . . Route ------- -11/Scrapyard -10/Materials (discovered 5 exits: *Mat x3 / *Min / *Sub) -10/Mines (discovered 3 exits: *Mat x2 / *Sub) -10/Subcaves History --------- Turn | Location | Event 22 | -11/Scrapyard | Discovered new exit (range 16) 319 | -11/Scrapyard | Entered Materials 320 | -10/Materials | Build established: Mutant 407 | -10/Materials | Discovered new exit (range 8) 592 | -10/Materials | Discovered new exit (range 8) 617 | -10/Materials | Discovered new exit (range 10) 914 | -10/Materials | Discovered new exit (range 13) 1060 | -10/Materials | Discovered new exit (range 12) 1081 | -10/Materials | Learned location of 1 exit from Storage 1134 | -10/Materials | Learned location of Mines (-10) 1179 | -10/Materials | Learned location of Storage (-8) 1219 | -10/Materials | Derelicts attacked the area 1322 | -10/Materials | Learned location of Recycling (-8) 1367 | -10/Materials | Identified exit to Materials 1367 | -10/Materials | Identified exit to Mines 1701 | -10/Materials | Entered Mines 1701 | -10/Mines | Accompanied by 1 ally 1883 | -10/Mines | Learned Materials garrison access intel 1895 | -10/Mines | Found a Scrap Suit stashed away for nefarious purposes 1955 | -10/Mines | Joined a pair of Derelicts in attacking an 0b10 outpost 2136 | -10/Mines | Learned 2 Materials zone layouts 2147 | -10/Mines | Assembled infested the area 2152 | -10/Mines | Assisted by a Guerilla fighting off Assembled 2397 | -10/Mines | Core integrity fell below 50% 2419 | -10/Mines | Found a hidden stash of uninstalled traps 2607 | -10/Mines | Met a Derelict shopkeep closing up shop 3123 | -10/Mines | Discovered new exit (range 6) 3135 | -10/Mines | Entered Subcaves 3135 | -10/Subcaves | Accompanied by 1 ally 3137 | -10/Subcaves | A swath of the cavern ceiling suddenly collapsed 3148 | -10/Subcaves | Learned location of 1 exit from Materials 3315 | -10/Subcaves | Learned location of Zion (-7) 3776 | -10/Subcaves | Shifting Twisted Machinery released Spk. Treads 3806 | -10/Subcaves | Shifting Twisted Machinery released Flamer 3895 | -10/Subcaves | Visited Clippyterm 3899 | -10/Subcaves | Learned Factory garrison access intel 3899 | -10/Subcaves | Learned Research machine intel 4064 | -10/Subcaves | Core integrity fell below 20% 4474 | -10/Subcaves | Lost 5 parts (2n1u2w) 4722 | -10/Subcaves | Destroyed by 8T-MFT(R) with Subdweller Machine Gun Last Messages --------------- 04461_ Acquired Hcp. Battery. 04463_ Dropped Sub. Monowheel. 04464_ Subatomizers dissect the Med. Storage Unit. 04466_ Acquired Med. Storage Unit. 04470_ Acquired Adv. Treads. 04473_ Acquired Hvy. Flail. 04475_ Acquired Spk. Treads. 04480_ Acquired 10 matter. 04482_ Acquired Sub. Beam Cannon. 04483_ Acquired 24 matter. 04487_ Acquired Sub. Machine Gun. 04491_ Subatomizers dissect the Sub. Monowheel. 04491_ Acquired Lrg. Matter Pod. 04496_ Acquired Spk. Treads. 04499_ Acquired Beam Cannon. 04503_ Dropped Beam Cannon. 04506_ Subatomizers dissect the Sub. Monowheel, destroying it. 04506_ Acquired Hvy. Assault Rifle. 04592_ Subatomizers dissect the Sub. Optics. Map ----- +----------------------------------------------------+ | ??????????????# #?# ####??## ########## | | ??????????????## #??# #### ##??????## | | ???????????????##???# # ##%# #??????## | | ????????????????????# ##### #####??????# | | ???????????????????# ###???####??????????# | | ???????????????????# #???????????????????## | | ???????????????????### ##????????????????????## | | ?????????????????????###???????????????????????## | | ???????????????????????????????????????????????# | | ???????????????????????????????????????????????# | | ???????????????????????????????????????????????# | | ???????????????????????????????????????????????# | | ???????????????????????????????????????????????## | | ???????????????????????????????????????????????# | | ???????????????????????????????????????????????# | | ???????????????????????????????????????????????# | | ?????????????????????????????????????????????### | | ????????????? ??????????????????????????????# | | ????????????R ?????????????????????????????# | | ???????????? ???????????????????????????# | | ???????????? ?????????????????????????### | | ??????????? #???????????????????????# | | ??????????? ??####????????????????## ## | | ?????????????# ## ##???????????????## # | | ??????????????# ###????????????## # | | ??????????????# @ ##???????????# | | ??????????????# ##????????### | | ??????????????# ## #???????## ### | | ??????????????####### #### ######### #?? | | ????????????????????# ???# ## ## #?? | | ????????????????????# ????# #### ##? | | ??????????????????? ????#### ##??# ## | | ?????????????????? ????????## ##???# # | | ?????????????????## ?????????## ###????## # | | ??????????????????## ???????????### ##???????#### | | ???????????????????##?????????????####???????????? | | ?????????????????????????????????????????????????? | | ?????????????????????????????????????????????????? | | ?????????????????????????????????????????????????? | | ?????????????????????????????????????????????????? | | ?????????????????????????????????????????????????? | | ?????????????????????????????????????????????????? | | ?????????????????????????????????????????????????? | | ?????????????????????????????????????????????????? | | ?????????????????????????????????????????????????? | | ?????????????????????????????????????????????????? | | ?????????????????????????????????????????????????? | | ?????????????????????????????????????????????????? | | ?????????????????????????????????????????????????? | | ?????????????????????????????????????????????????? | +----------------------------------------------------+ Best States ------------- Heat Dissipation 25 Energy Generation 12 Energy Capacity 515 Matter Stores 300 Matter Capacity 300 Sight Range 16 Terrain Scan Range 16 Terrain Scan Density 10 Armor Coverage 150 Evasion (%) 55 Recoil Reduction 1 Item Schematics ----------------- None Robot Schematics ------------------ None Fabricated ------------ Nothing Repaired ---------- Nothing Studied --------- None Alien Tech Used ----------------- None Achievements -------------- None Challenges ------------ None Game ------ Seed LatentCentriumPendant Manual? 0 Play Time 00:31:38 Cumulative 865.1 hours Start 2025.12.17 @ 10:48:51 End 2025.12.17 @ 11:17:24 Sessions 1 Manual Loads 0 Difficulty Rogue Special Mode None Game No. 554 Rogue 554 Adventurer 0 Explorer 0 Win Type - Total 1 Types 1/0/0/0/0/0/0/0/0/0 Lore% 79 Gallery% 72 Achievement% 52 Wizard Run 0 Options --------- Layout 1 ASCII 0 Keyboard 0 Movement Mouse Keybinds 0 Fullscreen 1 Font 20/SmallcapsGlow Map View 54x42 Zoom Use 0% Tactical HUD 1 Map Filters NONE Filters NONE Steam 1 RUN: ba82440b-886a-4a93-8158-0d13cc7af5fc